bitfinex/quotes_BTCUSD_20251016
["timestamp","ask_amount","ask_price","bid_price","bid_amount"]
[1760586470359,0.01569405,111740.0,111730.0,0.38109307]
[1760586470749,0.19468098,111740.0,111730.0,0.38109307]
[1760586470950,0.01569405,111740.0,111730.0,0.38109307]
[1760586471163,8.88e-05,111740.0,111730.0,0.38109307]
[1760586471559,8.88e-05,111740.0,111730.0,0.76214279]
[1760586471806,8.88e-05,111740.0,111730.0,0.38109307]
[1760586472050,8.88e-05,111740.0,111730.0,0.76214279]
[1760586472251,8.88e-05,111740.0,111730.0,0.78904954]
[1760586472848,8.88e-05,111740.0,111730.0,0.67664954]
[1760586473059,8.88e-05,111740.0,111730.0,0.78904954]
[1760586473425,8.88e-05,111740.0,111730.0,0.67664954]
[1760586473590,8.88e-05,111740.0,111730.0,0.78904954]
[1760586474116,8.88e-05,111740.0,111730.0,0.82523182]
[1760586474322,8.88e-05,111740.0,111730.0,0.71283182]
[1760586474526,8.88e-05,111740.0,111730.0,0.82523182]
[1760586474914,8.88e-05,111740.0,111730.0,0.71283182]
[1760586475111,8.88e-05,111740.0,111730.0,0.82523182]
[1760586476954,8.88e-05,111740.0,111730.0,1.16523182]
[1760586477376,8.88e-05,111740.0,111730.0,1.05283182]
[1760586477562,8.88e-05,111740.0,111730.0,1.16523182]
[1760586478101,8.88e-05,111740.0,111730.0,1.16623182]
[1760586478308,8.88e-05,111740.0,111730.0,1.21999182]
[1760586479553,0.22580822,111790.0,111770.0,0.17893311]
[1760586479754,0.25525109,111790.0,111780.0,0.01789228]
[1760586479931,0.25525109,111790.0,111780.0,0.13025228]
[1760586480150,0.18349899,111790.0,111780.0,0.13025228]
[1760586480928,0.17893889,111770.0,111760.0,0.02689988]
[1760586481142,0.1789742,111750.0,111730.0,0.30551389]
[1760586481362,0.1789742,111750.0,111740.0,0.22895634]
[1760586481579,0.1789742,111750.0,111740.0,0.02690622]
[1760586481580,0.57002392,111750.0,111740.0,0.02690622]
[1760586481794,0.57002392,111750.0,111730.0,0.14345012]
[1760586481795,0.17898693,111740.0,111730.0,0.14345012]
[1760586482006,0.56003665,111740.0,111730.0,0.25581012]
[1760586482418,0.17898693,111740.0,111730.0,0.25595911]
[1760586482881,0.17898693,111740.0,111730.0,0.43496206]
[1760586483492,0.17898693,111740.0,111730.0,0.25595911]
[1760586483710,0.56012192,111740.0,111730.0,0.25595911]
[1760586484122,0.57012192,111740.0,111730.0,0.25595911]
[1760586484518,0.57012192,111740.0,111730.0,0.20219911]
[1760586486047,0.56012192,111740.0,111730.0,0.20219911]
[1760586487380,0.17898693,111740.0,111730.0,0.20219911]
[1760586488182,0.19343898,111740.0,111730.0,0.08983911]
[1760586488384,0.1789742,111750.0,111730.0,0.76233705]
[1760586488828,0.1789742,111750.0,111740.0,0.17898693]
[1760586489325,0.19325023,111750.0,111730.0,0.76233705]
[1760586489452,0.57438522,111750.0,111730.0,0.76233705]
[1760586489661,0.57438522,111750.0,111740.0,0.01789869]
[1760586489864,0.19325023,111750.0,111740.0,0.01789869]
[1760586490065,0.19325023,111750.0,111740.0,0.19688562]
[1760586490309,0.0241296,111760.0,111740.0,0.64981204]
[1760586490518,0.00058283,111760.0,111750.0,0.38102103]
[1760586490768,0.00058283,111760.0,111750.0,0.76215602]
[1760586491213,0.00058283,111760.0,111750.0,0.38102103]
[1760586494346,0.17953773,111760.0,111750.0,0.20205012]
[1760586494613,0.56067272,111760.0,111750.0,0.08969012]
[1760586494812,0.5799456,111760.0,111750.0,0.21994721]
[1760586495017,0.5799456,111760.0,111750.0,0.20205012]
[1760586496269,0.5799456,111760.0,111750.0,0.20131606]
[1760586496704,0.19881061,111760.0,111750.0,0.20131606]
[1760586496914,0.17953773,111760.0,111750.0,0.20131606]
[1760586497245,0.56067272,111760.0,111750.0,0.20131606]
[1760586497452,0.5799456,111760.0,111750.0,0.20131606]
[1760586497631,0.19881061,111760.0,111750.0,0.20131606]
[1760586497869,0.17953773,111760.0,111750.0,0.20131606]
[1760586499509,0.56067272,111760.0,111750.0,0.20131606]
[1760586499732,0.5799456,111760.0,111750.0,0.20131606]
[1760586501385,0.19881061,111760.0,111750.0,0.20131606]
[1760586501585,0.17953773,111760.0,111750.0,0.20131606]
[1760586502002,0.00058283,111760.0,111750.0,0.76142196]
[1760586502267,0.00058283,111760.0,111750.0,0.788325]
[1760586502495,0.00058283,111760.0,111750.0,1.16450728]
[1760586507080,0.00058283,111760.0,111750.0,0.63483001]
[1760586507278,0.00058283,111760.0,111750.0,1.128325]
[1760586507681,0.00058283,111760.0,111750.0,1.015965]
[1760586507857,0.00058283,111760.0,111750.0,1.128325]
[1760586508691,0.00058283,111760.0,111750.0,1.16450728]
[1760586509664,0.00058283,111760.0,111750.0,1.17931384]
[1760586509920,0.00058283,111760.0,111750.0,1.16450728]
[1760586510922,0.00058283,111760.0,111750.0,1.17899414]
[1760586512583,0.00058283,111760.0,111750.0,1.56012913]
[1760586513921,1e-08,111760.0,111750.0,1.56012913]
[1760586514128,1e-08,111760.0,111750.0,1.94126412]
[1760586514328,1e-08,111760.0,111750.0,1.56012913]
[1760586514893,1e-08,111760.0,111750.0,1.56020913]
[1760586515712,1e-08,111760.0,111750.0,1.44776913]
[1760586515909,1e-08,111760.0,111750.0,1.56020913]
[1760586516134,1e-08,111760.0,111750.0,1.56116913]
[1760586516743,1e-08,111760.0,111750.0,1.56016913]
[1760586516949,1e-08,111760.0,111750.0,1.56116913]
[1760586517605,1e-08,111760.0,111750.0,1.94230412]
[1760586523390,1e-08,111760.0,111750.0,0.70403687]
[1760586523589,1e-08,111760.0,111750.0,1.08517186]
[1760586523795,1e-08,111760.0,111750.0,1.23371414]
[1760586523990,1e-08,111760.0,111750.0,1.61484913]
[1760586524204,1e-08,111760.0,111750.0,1.45181999]
[1760586524537,1e-08,111760.0,111750.0,0.34955001]
[1760586524735,1e-08,111760.0,111750.0,0.87922728]
[1760586525410,1e-08,111760.0,111750.0,1.21922728]
[1760586525646,1e-08,111760.0,111750.0,1.21822728]
[1760586525856,1e-08,111760.0,111750.0,1.21922728]
[1760586526274,1e-08,111760.0,111750.0,1.10686728]
[1760586526482,1e-08,111760.0,111750.0,1.22026728]
[1760586526874,1e-08,111760.0,111750.0,1.08096424]
[1760586527077,1e-08,111760.0,111750.0,1.19336424]
[1760586527486,1e-08,111760.0,111750.0,1.08096424]
[1760586527695,1e-08,111760.0,111750.0,1.19336424]
[1760586529915,1e-08,111760.0,111750.0,1.08096424]
[1760586530108,1e-08,111760.0,111750.0,1.19336424]
[1760586530742,1e-08,111760.0,111750.0,1.08096424]
[1760586530949,1e-08,111760.0,111750.0,1.19336424]
[1760586532958,1e-08,111760.0,111750.0,0.81222925]
[1760586533171,1e-08,111760.0,111750.0,1.08096424]
[1760586533387,1e-08,111760.0,111750.0,1.19332424]
[1760586535936,1e-08,111760.0,111750.0,0.81218925]
[1760586536144,1e-08,111760.0,111750.0,1.19332424]
[1760586540474,1e-08,111760.0,111750.0,0.69982925]
[1760586540705,1e-08,111760.0,111750.0,1.08096424]
[1760586540915,0.17895491,111760.0,111750.0,0.32364697]
[1760586541126,0.17895491,111760.0,111750.0,0.43600697]
[1760586541993,0.5600899,111760.0,111750.0,0.25703606]
[1760586542218,0.5600899,111760.0,111750.0,0.14467606]
[1760586542454,1e-08,111760.0,111750.0,0.65606814]
[1760586542662,1e-08,111760.0,111750.0,0.81714196]
[1760586542878,1e-08,111760.0,111750.0,0.81614196]
[1760586543129,1e-08,111760.0,111750.0,0.70378196]
[1760586543336,1e-08,111760.0,111750.0,0.81514196]
[1760586543540,1e-08,111760.0,111750.0,0.81491609]
[1760586543975,1e-08,111760.0,111750.0,0.43400697]
[1760586544180,1e-08,111760.0,111750.0,0.43500697]
[1760586544594,1e-08,111760.0,111750.0,0.32264697]
[1760586544806,1e-08,111760.0,111750.0,0.43500697]
[1760586545014,1e-08,111760.0,111750.0,0.43600697]
[1760586545461,1e-08,111760.0,111750.0,1.19309837]
[1760586545679,1e-08,111760.0,111750.0,1.57400749]
[1760586546736,1e-08,111760.0,111750.0,1.57300749]
[1760586547158,1e-08,111760.0,111750.0,1.57400749]
[1760586547567,1e-08,111760.0,111750.0,1.57300749]
[1760586547812,1e-08,111760.0,111750.0,0.81218925]
[1760586548041,1e-08,111760.0,111750.0,1.57400749]
[1760586548466,1e-08,111760.0,111750.0,1.46064749]
[1760586548675,1e-08,111760.0,111750.0,1.57408749]
[1760586549705,0.0717521,111790.0,111780.0,0.17892288]
[1760586549909,0.0717521,111790.0,111780.0,0.381053]
[1760586550119,0.17889267,111800.0,111790.0,0.17890687]
[1760586550331,0.17889267,111800.0,111790.0,0.26859699]
[1760586550770,0.17889267,111800.0,111790.0,0.20213012]
[1760586550995,0.57029932,111800.0,111790.0,0.11244]
[1760586551174,0.1789296,111780.0,111770.0,0.17893889]
[1760586551385,0.1789296,111780.0,111770.0,0.38106901]
[1760586551652,0.55983872,111780.0,111770.0,0.08969012]
[1760586551863,0.17894372,111770.0,111760.0,0.1789549]
[1760586552089,0.1789549,111760.0,111740.0,0.24165546]
[1760586552301,0.55985284,111770.0,111750.0,0.38110103]
[1760586552513,0.55985284,111770.0,111750.0,0.08969012]
[1760586552514,0.55986402,111760.0,111750.0,0.08969012]
[1760586552727,4.488169,111770.0,111760.0,0.1789549]
[1760586552948,0.18787574,111780.0,111760.0,0.26864502]
[1760586553150,0.18787574,111780.0,111770.0,0.01789388]
[1760586553358,0.18800921,111780.0,111770.0,0.01789388]
[1760586553558,0.18800921,111780.0,111770.0,0.01889388]
[1760586553964,0.18800921,111780.0,111770.0,0.01789388]
[1760586555825,0.00013347,111780.0,111770.0,0.28652289]
[1760586556034,0.00013347,111780.0,111770.0,0.26862901]
[1760586556456,0.00013347,111780.0,111770.0,0.38114901]
[1760586557080,0.00013347,111780.0,111770.0,0.38214901]
[1760586557915,0.00013347,111780.0,111770.0,0.38314901]
[1760586558334,0.00013347,111780.0,111770.0,0.38214901]
[1760586558553,0.00013347,111780.0,111770.0,0.38314901]
[1760586558928,0.00013347,111780.0,111770.0,0.38214901]
[1760586559707,0.00013347,111780.0,111770.0,0.38314901]
[1760586560574,0.00129886,111780.0,111770.0,0.38314901]
[1760586561319,0.00129886,111780.0,111770.0,1.08440351]
[1760586561911,0.00129886,111780.0,111770.0,0.97188351]
[1760586562113,0.00129886,111780.0,111770.0,1.08440351]
[1760586562355,0.00129886,111780.0,111770.0,0.41933129]
[1760586562903,0.18022174,111780.0,111770.0,0.38314901]
[1760586563154,0.18022174,111780.0,111770.0,0.27062901]
[1760586563329,0.00129886,111780.0,111770.0,0.38314901]
[1760586563778,0.00129886,111780.0,111770.0,0.27062901]
[1760586563993,0.00129886,111780.0,111770.0,0.38314901]
[1760586564333,0.00129886,111780.0,111770.0,0.27062901]
[1760586564728,0.18022174,111780.0,111770.0,0.27062901]
[1760586564935,0.18022174,111780.0,111770.0,0.20421012]
[1760586565360,0.18022174,111780.0,111770.0,0.09169012]
[1760586565540,0.18022174,111780.0,111770.0,0.20421012]
[1760586566040,0.18022174,111780.0,111770.0,0.38214901]
[1760586566254,0.18022174,111780.0,111770.0,0.20321012]
[1760586566465,0.18022174,111780.0,111770.0,0.09169012]
[1760586566674,0.18022174,111780.0,111770.0,0.20321012]
[1760586567090,0.18022174,111780.0,111770.0,0.38214901]
[1760586570743,0.18022174,111780.0,111770.0,0.20321012]
[1760586571183,0.18022174,111780.0,111770.0,0.001]
[1760586571397,5.34346296,111780.0,111770.0,0.11352]
[1760586571615,5.36275862,111780.0,111770.0,0.001]
[1760586571880,5.38688822,111780.0,111770.0,0.11352]
[1760586572095,5.38688822,111780.0,111770.0,0.11252]
[1760586572553,5.72688822,111780.0,111770.0,0.11252]
[1760586575215,0.17898693,111740.0,111730.0,0.30447277]
[1760586575420,0.17898693,111740.0,111730.0,0.50676289]
[1760586575640,0.17898693,111740.0,111730.0,0.43501079]
[1760586576046,0.17898693,111740.0,111730.0,0.32241307]
[1760586576252,0.17898693,111740.0,111730.0,0.25601012]
[1760586576463,0.17898693,111740.0,111730.0,0.43616206]
[1760586576664,0.17898474,111750.0,111730.0,0.43716206]
[1760586576852,0.17898474,111750.0,111740.0,0.08969012]
[1760586578001,0.17898474,111750.0,111740.0,0.10758881]
[1760586578226,0.17898474,111750.0,111740.0,0.08969012]
[1760586579260,0.17898474,111750.0,111740.0,0.09069012]
[1760586580298,0.17898474,111750.0,111740.0,0.20325012]
[1760586589283,0.17898474,111750.0,111740.0,0.38223705]
[1760586589482,0.17898474,111750.0,111740.0,0.26967705]
[1760586589702,0.17898474,111750.0,111740.0,0.38219705]
[1760586594813,0.17898474,111750.0,111740.0,0.20321012]
[1760586595760,0.17898474,111750.0,111740.0,0.11352]
[1760586597639,0.56010535,111750.0,111740.0,0.11352]
[1760586597840,5.06753989,111750.0,111740.0,0.11352]
[1760586598256,5.07753989,111750.0,111740.0,0.11352]
[1760586599286,5.10162181,111750.0,111740.0,0.11352]
[1760586600155,4.7205012,111750.0,111740.0,0.11352]
[1760586600374,5.10162181,111750.0,111740.0,0.11352]
[1760586601274,5.13379104,111750.0,111740.0,0.11352]
[1760586602170,5.85491165,111750.0,111740.0,0.001]
[1760586602392,5.86369711,111750.0,111740.0,0.09428]
[1760586602616,5.90513534,111750.0,111740.0,0.11352]
[1760586603080,5.90513534,111750.0,111740.0,0.001]
[1760586603302,5.953479,111750.0,111740.0,0.11352]
[1760586603534,5.95378796,111750.0,111740.0,0.11352]
[1760586604216,5.9054443,111750.0,111740.0,0.11252]
[1760586606832,6.28671939,111750.0,111740.0,0.11252]
[1760586607045,6.35114855,111750.0,111740.0,0.11252]
[1760586607670,6.33500756,111750.0,111740.0,0.06411668]
[1760586608587,0.51898693,111740.0,111730.0,0.00014899]
[1760586608793,6.40748944,111740.0,111730.0,0.11266899]
[1760586609198,6.35921465,111740.0,111730.0,0.11266899]
[1760586609401,6.37530625,111740.0,111730.0,0.11266899]
[1760586609866,6.75658134,111740.0,111730.0,0.11266899]
[1760586611325,6.37530625,111740.0,111730.0,0.11266899]
[1760586611536,6.75658134,111740.0,111730.0,0.11266899]
[1760586611965,6.84627146,111740.0,111730.0,0.11266899]
[1760586613049,7.60882164,111740.0,111730.0,0.11266899]
[1760586613260,7.60882164,111740.0,111730.0,0.00014899]
[1760586613470,7.80984685,111740.0,111730.0,0.00014899]
[1760586614498,7.81084685,111740.0,111730.0,0.00014899]
[1760586614702,7.81184685,111740.0,111730.0,0.00014899]
[1760586615357,7.81184685,111740.0,111730.0,1e-08]
[1760586615560,4.66717195,111730.0,111720.0,0.11292]
[1760586615785,5.30418742,111730.0,111720.0,0.0004888]
[1760586615988,6.0667376,111730.0,111720.0,0.0004888]
[1760586616444,6.52424725,111730.0,111720.0,1e-08]
[1760586616648,6.72142658,111730.0,111720.0,1e-08]
[1760586616850,7.57289555,111730.0,111720.0,1e-08]
[1760586618077,7.57389555,111730.0,111720.0,1e-08]
[1760586619617,7.6493443,111730.0,111720.0,1e-08]
[1760586620333,7.6483443,111730.0,111720.0,1e-08]
[1760586620549,7.6493443,111730.0,111720.0,1e-08]
[1760586621379,7.6503443,111730.0,111720.0,1e-08]
[1760586621997,7.65393442,111730.0,111720.0,1e-08]
[1760586622537,0.21520125,111720.0,111710.0,0.0004]
[1760586622717,7.2440646,111720.0,111710.0,0.0004]
[1760586623127,7.22727988,111720.0,111710.0,1e-08]
[1760586623338,7.61091074,111720.0,111710.0,1e-08]
[1760586623489,7.6753399,111720.0,111710.0,1e-08]
[1760586623931,7.6763399,111720.0,111710.0,1e-08]
[1760586624098,4.67773128,111710.0,111700.0,1e-08]
[1760586624289,6.06051221,111710.0,111700.0,1e-08]
[1760586624490,6.3326372,111710.0,111700.0,1e-08]
[1760586624716,6.6726372,111710.0,111700.0,1e-08]
[1760586624918,6.69956528,111710.0,111700.0,1e-08]
[1760586625074,7.08084037,111710.0,111700.0,1e-08]
[1760586625414,7.14526953,111710.0,111700.0,1e-08]
[1760586625573,7.16197693,111710.0,111700.0,1e-08]
[1760586626024,6.78070184,111710.0,111700.0,1e-08]
[1760586626862,5.74413124,111690.0,111680.0,0.205]
[1760586627019,5.90010418,111690.0,111680.0,0.205]
[1760586628578,5.9642025,111690.0,111680.0,0.205]
[1760586629228,5.90010418,111690.0,111680.0,0.205]
[1760586629439,5.9642025,111690.0,111680.0,0.205]
[1760586629656,5.20165232,111690.0,111680.0,0.205]
[1760586629858,5.9642025,111690.0,111680.0,0.205]
[1760586630190,5.90010418,111690.0,111680.0,0.3176]
[1760586630434,5.9642025,111690.0,111680.0,0.3176]
[1760586630842,6.34547759,111690.0,111680.0,0.3176]
[1760586632678,6.34547759,111690.0,111680.0,0.205]
[1760586632883,6.34547759,111690.0,111680.0,0.31756]
[1760586633825,6.3454695,111690.0,111680.0,0.31756]
[1760586634199,6.3454695,111690.0,111680.0,0.205]
[1760586634200,5.9765556,111690.0,111680.0,0.205]
[1760586634400,5.9765556,111690.0,111680.0,0.31756]
[1760586635009,5.21400542,111690.0,111680.0,0.31756]
[1760586635218,5.9765556,111690.0,111680.0,0.31756]
[1760586636646,5.9765556,111690.0,111680.0,0.24491942]
[1760586636895,5.91245728,111690.0,111680.0,0.24491942]
[1760586637922,5.1499071,111690.0,111680.0,0.24491942]
[1760586638121,5.91245728,111690.0,111680.0,0.24491942]
[1760586639379,5.9765556,111690.0,111680.0,0.13235942]
[1760586639555,5.9765556,111690.0,111680.0,0.24491942]
[1760586639969,5.9765556,111690.0,111680.0,0.13235942]
[1760586640146,5.91245728,111690.0,111680.0,0.24491942]
[1760586640349,5.91245728,111690.0,111680.0,0.19649238]
[1760586640550,5.91245728,111690.0,111680.0,0.08393238]
[1760586640750,5.91245728,111690.0,111680.0,0.19649238]
[1760586641899,5.57245728,111690.0,111680.0,0.19649238]
[1760586646364,5.91245728,111690.0,111680.0,0.19649238]
[1760586646889,5.9765556,111690.0,111680.0,0.19649238]
[1760586647099,5.91245728,111690.0,111680.0,0.19649238]
[1760586647710,5.91252135,111690.0,111680.0,0.19649238]
[1760586651884,6.05748876,111690.0,111680.0,0.1238507]
[1760586652079,5.91252135,111690.0,111680.0,0.1238507]
[1760586657227,5.96088644,111690.0,111680.0,0.1238507]
[1760586658061,5.94412306,111690.0,111680.0,0.1238507]
[1760586658272,5.96091672,111690.0,111680.0,0.1238507]
[1760586658680,5.96091672,111690.0,111680.0,0.1237707]
[1760586662020,6.00224175,111690.0,111680.0,0.1237707]
[1760586663238,6.05060172,111690.0,111680.0,0.1237707]
[1760586664793,6.06173691,111690.0,111680.0,0.1237707]
[1760586665584,6.02617523,111690.0,111680.0,0.1237707]
[1760586665736,6.11753615,111690.0,111680.0,0.0112907]
[1760586665936,6.11753615,111690.0,111670.0,0.0004]
[1760586665937,0.42838309,111680.0,111670.0,0.0004]
[1760586666194,5.902415,111680.0,111670.0,0.11288]
[1760586666407,5.92535946,111680.0,111670.0,0.0004]
[1760586666548,0.51909913,111670.0,111660.0,0.11908999]
[1760586666780,5.98800428,111670.0,111660.0,0.00660999]
[1760586666980,5.9960755,111670.0,111660.0,0.10152999]
[1760586667179,5.9960755,111670.0,111660.0,0.10161903]
[1760586667382,6.02682458,111670.0,111660.0,0.00669903]
[1760586667699,6.00268549,111670.0,111660.0,0.00669903]
[1760586668282,6.03886777,111670.0,111660.0,1e-08]
[1760586669170,6.08721358,111670.0,111660.0,1e-08]
[1760586669414,6.03886777,111670.0,111660.0,1e-08]
[1760586669824,6.03986777,111670.0,111660.0,1e-08]
[1760586670669,5.27632857,111670.0,111660.0,1e-08]
[1760586670873,6.01692331,111670.0,111660.0,1e-08]
[1760586671074,5.59797143,111670.0,111660.0,1e-08]
[1760586671275,5.59084071,111670.0,111660.0,1e-08]
[1760586671476,5.97261031,111670.0,111660.0,1e-08]
[1760586672325,5.97361031,111670.0,111660.0,1e-08]
[1760586672527,5.97161031,111670.0,111660.0,1e-08]
[1760586672933,5.59084071,111670.0,111660.0,1e-08]
[1760586673151,5.50115059,111670.0,111660.0,1e-08]
[1760586673382,5.46025826,111670.0,111660.0,1e-08]
[1760586673991,5.46025826,111670.0,111660.0,0.11260001]
[1760586674861,5.84202786,111670.0,111660.0,0.11260001]
[1760586676541,5.84202786,111670.0,111660.0,1e-08]
[1760586676812,5.84202786,111670.0,111660.0,0.11260001]
[1760586677032,5.95466244,111670.0,111660.0,1e-08]
[1760586677234,5.97876111,111670.0,111660.0,1e-08]
[1760586677441,6.06389849,111670.0,111660.0,1e-08]
[1760586677861,6.03979982,111670.0,111660.0,1e-08]
[1760586678272,6.08814563,111670.0,111660.0,1e-08]
[1760586678675,6.08714563,111670.0,111660.0,1e-08]
[1760586679079,6.05591624,111670.0,111660.0,1e-08]
[1760586679296,6.05591209,111670.0,111660.0,1e-08]
[1760586679541,6.05691209,111670.0,111660.0,1e-08]
[1760586680166,6.08900995,111670.0,111660.0,1e-08]
[1760586682009,6.05691209,111670.0,111660.0,1e-08]
[1760586685960,6.04019053,111670.0,111660.0,1e-08]
[1760586686195,6.05690344,111670.0,111660.0,1e-08]
[1760586686417,6.05690495,111670.0,111660.0,1e-08]
[1760586686638,6.03396049,111670.0,111660.0,1e-08]
[1760586688032,6.03396214,111670.0,111660.0,1e-08]
[1760586689236,6.0569066,111670.0,111660.0,1e-08]
[1760586691467,6.00856079,111670.0,111660.0,1e-08]
[1760586692818,6.07299175,111670.0,111660.0,1e-08]
[1760586694458,5.74516837,111660.0,111650.0,0.0004]
[1760586694665,6.04903931,111660.0,111650.0,0.00089645]
[1760586694868,6.07198377,111660.0,111650.0,0.00089645]
[1760586695115,6.32128377,111660.0,111650.0,0.00089645]
[1760586695332,6.30002316,111660.0,111650.0,0.00089645]
[1760586695735,6.30105008,111660.0,111650.0,0.00089645]
[1760586696098,6.05175008,111660.0,111650.0,0.00089645]
[1760586697706,6.09998408,111660.0,111650.0,0.00089645]
[1760586698119,6.05175008,111660.0,111650.0,0.00089645]
[1760586699181,6.11618104,111660.0,111650.0,0.00089645]
[1760586700185,6.11618104,111660.0,111650.0,0.0014801]
[1760586700685,6.03500709,111660.0,111650.0,0.0014801]
[1760586700947,6.05175338,111660.0,111650.0,0.0014801]
[1760586702960,6.0999845,111660.0,111650.0,0.0014801]
[1760586703200,6.05175338,111660.0,111650.0,0.0014801]
[1760586703901,6.07708346,111660.0,111650.0,0.0014801]
[1760586705576,6.07710912,111660.0,111650.0,0.0014801]
[1760586706735,5.31356992,111660.0,111650.0,0.0014801]
[1760586706939,6.07710912,111660.0,111650.0,0.0014801]
[1760586710889,6.32640912,111660.0,111650.0,0.0014801]
[1760586711233,6.35862535,111660.0,111650.0,0.0014801]
[1760586715968,6.35863413,111660.0,111650.0,0.0014801]
[1760586716173,5.99553459,111660.0,111650.0,0.0014801]
[1760586716380,5.91959903,111660.0,111650.0,0.0014801]
[1760586716594,5.53782943,111660.0,111650.0,0.1140401]
[1760586716806,5.17366431,111660.0,111650.0,0.0014801]
[1760586717021,5.38266431,111660.0,111650.0,0.1140401]
[1760586717449,5.36339877,111660.0,111650.0,0.1140401]
[1760586718115,0.51911517,111660.0,111650.0,0.31108443]
[1760586718345,0.90088477,111660.0,111650.0,0.18061131]
[1760586718568,4.462514,111660.0,111650.0,0.28821455]
[1760586718774,4.462514,111660.0,111650.0,0.38282143]
[1760586719186,4.462514,111660.0,111650.0,0.27030143]
[1760586719397,4.462514,111660.0,111650.0,0.38282143]
[1760586720044,4.64162917,111660.0,111650.0,0.27030143]
[1760586720263,0.56088477,111660.0,111650.0,0.20469022]
[1760586720682,0.56088477,111660.0,111650.0,0.38382143]
[1760586721357,0.3817696,111660.0,111650.0,0.38382143]
[1760586721562,0.3817696,111660.0,111650.0,0.27130143]
[1760586721770,5.36338273,111670.0,111660.0,0.17911517]
[1760586721986,0.52803724,111680.0,111660.0,0.17911517]
[1760586722209,4.462514,111670.0,111660.0,0.26880529]
[1760586722419,4.462514,111670.0,111660.0,0.38132529]
[1760586723294,0.17909913,111670.0,111660.0,0.38132529]
[1760586724213,0.17909913,111670.0,111660.0,0.20221012]
[1760586725459,0.56074496,111670.0,111660.0,0.20221012]
[1760586726498,0.56074496,111670.0,111660.0,0.38132529]
[1760586726726,0.17909913,111670.0,111660.0,0.38132529]
[1760586726936,4.462514,111670.0,111660.0,0.76297112]
[1760586727583,0.52803724,111680.0,111670.0,0.17909913]
[1760586727760,0.52803724,111680.0,111670.0,0.26878925]
[1760586728035,0.18803724,111680.0,111670.0,0.65043508]
[1760586728247,0.58202743,111690.0,111670.0,0.76295508]
[1760586728456,4.462514,111680.0,111670.0,0.26878925]
[1760586728671,0.01236119,111690.0,111680.0,0.17908309]
[1760586728887,4.462514,111690.0,111680.0,0.76293904]
[1760586729123,4.462514,111690.0,111680.0,0.65041904]
[1760586729339,4.462514,111690.0,111680.0,0.76293904]
[1760586729755,4.47354125,111690.0,111680.0,0.76293904]
[1760586729992,4.462514,111690.0,111680.0,0.65041904]
[1760586730209,4.462514,111690.0,111680.0,0.76293904]
[1760586730896,4.462514,111690.0,111680.0,0.65041904]
[1760586731102,4.462514,111690.0,111680.0,0.76293904]
[1760586731512,4.84415983,111690.0,111680.0,0.38129321]
[1760586731715,0.38164583,111690.0,111680.0,0.38129321]
[1760586731936,0.01136684,111690.0,111680.0,0.38129321]
[1760586732147,0.39301267,111690.0,111680.0,0.38129321]
[1760586732362,0.39301267,111690.0,111680.0,0.26877321]
[1760586732574,0.39301267,111690.0,111680.0,0.38129321]
[1760586732818,0.38164583,111690.0,111680.0,0.38129321]
[1760586734611,0.72164583,111700.0,111690.0,0.17906706]
[1760586734837,0.72164583,111700.0,111690.0,0.26875718]
[1760586735070,0.38164583,111700.0,111690.0,0.26875718]
[1760586735937,0.38179489,111700.0,111690.0,0.26875718]
[1760586736790,0.38179489,111700.0,111690.0,0.38123718]
[1760586741312,0.38157736,111700.0,111690.0,0.38123718]
[1760586741791,0.94205668,111700.0,111690.0,0.38123718]
[1760586741925,0.76300566,111700.0,111690.0,0.38123718]
[1760586742877,0.76300566,111700.0,111690.0,0.37746621]
[1760586743353,0.94205668,111700.0,111690.0,0.37746621]
[1760586743759,0.17908309,111680.0,111670.0,0.17909894]
[1760586744013,0.95089384,111680.0,111670.0,0.20217012]
[1760586744326,0.95089384,111680.0,111670.0,0.38126925]
[1760586744327,0.7628566,111680.0,111670.0,0.38126925]
[1760586744527,0.59369531,111700.0,111680.0,0.17908309]
[1760586744735,0.3814283,111690.0,111680.0,0.26877321]
[1760586745164,0.3814283,111690.0,111680.0,0.38125321]
[1760586745868,0.40067824,111690.0,111680.0,0.38125321]
[1760586746091,0.5797453,111690.0,111680.0,0.38125321]
[1760586751709,0.9611736,111690.0,111680.0,0.38125321]
[1760586752144,0.9611736,111690.0,111680.0,0.26877321]
[1760586752363,0.98528798,111690.0,111680.0,0.38125321]
[1760586752766,0.98528798,111690.0,111680.0,0.26877321]
[1760586752972,0.98528798,111690.0,111680.0,0.38125321]
[1760586755126,0.98528798,111690.0,111680.0,0.26877321]
[1760586755341,0.98528798,111690.0,111680.0,0.38125321]
[1760586756108,1.01750421,111690.0,111680.0,0.20217012]
[1760586756578,1.35750421,111690.0,111680.0,0.08969012]
[1760586756797,1.33338983,111690.0,111680.0,0.20217012]
[1760586759277,1.35755623,111690.0,111680.0,0.20217012]
[1760586759909,1.35755623,111690.0,111680.0,0.26877321]
[1760586760107,1.35755623,111690.0,111680.0,0.38125321]
[1760586760272,1.32534,111690.0,111680.0,0.38125321]
[1760586762112,1.32534,111690.0,111680.0,0.20217012]
[1760586763007,1.32534,111690.0,111680.0,0.08969012]
[1760586763218,1.32534,111690.0,111680.0,0.22007842]
[1760586763458,1.32534,111690.0,111680.0,0.20217012]
[1760586765699,1.32534,111690.0,111680.0,0.08969012]
[1760586765906,1.32534,111690.0,111680.0,0.22007842]
[1760586766161,1.32534,111690.0,111680.0,0.20217012]
[1760586766365,1.3011736,111690.0,111680.0,0.20217012]
[1760586766577,1.32534,111690.0,111680.0,0.08969012]
[1760586766793,1.32534,111690.0,111680.0,0.22007842]
[1760586766975,1.28931013,111690.0,111680.0,0.20217012]
[1760586768341,0.17910302,111670.0,111650.0,0.2790137]
[1760586768625,0.17910302,111670.0,111660.0,0.38128529]
[1760586769077,0.56948129,111680.0,111660.0,0.38128529]
[1760586769305,0.90948129,111680.0,111670.0,0.01790991]
[1760586769746,1.67233789,111680.0,111670.0,0.01790991]
[1760586771944,1.29090959,111680.0,111670.0,0.01790991]
[1760586773514,1.67233789,111680.0,111670.0,0.01790991]
[1760586781058,0.51909913,111670.0,111660.0,0.20217012]
[1760586781305,1.28195573,111670.0,111660.0,0.20217012]
[1760586782008,1.28195573,111670.0,111660.0,0.38128529]
[1760586783176,1.28195573,111670.0,111660.0,0.38228529]
[1760586784581,1.28195573,111670.0,111660.0,0.26980529]
[1760586784786,1.28195573,111670.0,111660.0,0.38228529]
[1760586785182,1.29331512,111670.0,111660.0,0.38228529]
[1760586787536,0.9121798,111670.0,111660.0,0.38228529]
[1760586790082,0.9121798,111670.0,111660.0,0.20317012]
[1760586790650,0.9121798,111670.0,111660.0,0.38228529]
[1760586792734,0.9121798,111670.0,111660.0,0.20317012]
[1760586793990,0.9121798,111670.0,111660.0,0.38228529]
[1760586795153,0.53045852,111670.0,111660.0,0.38228529]
[1760586795399,0.34,111670.0,111660.0,0.38228529]